[Event "Early-Titled-Tuesday-Blitz-April-02-2024"]
[Site "Chess.com"]
[Date "2024.04.02"]
[Round "1"]
[White "agvania123"]
[Black "Harry_Rakkel"]
[Result "0-1"]
[WhiteElo "2419"]
[BlackElo "2723"]
[TimeControl "180+1"]
[EndTime "8:08:30 PDT"]
[Termination "Harry_Rakkel won by resignation"]

1. c4 {[%clk 0:03:00.9]} 1... Nf6 {[%clk 0:02:57.3]} 2. Nc3 {[%clk 0:02:59.3]}
2... e5 {[%clk 0:02:53.8]} 3. Nf3 {[%clk 0:02:57.9]} 3... Nc6 {[%clk 0:02:50]}
4. e3 {[%clk 0:02:57.1]} 4... d5 {[%clk 0:02:45.8]} 5. cxd5 {[%clk 0:02:54.6]}
5... Nxd5 {[%clk 0:02:46.7]} 6. Bb5 {[%clk 0:02:53.7]} 6... Nxc3 {[%clk
0:02:46.6]} 7. bxc3 {[%clk 0:02:53.2]} 7... Bd6 {[%clk 0:02:46.5]} 8. d4 {[%clk
0:02:50.2]} 8... exd4 {[%clk 0:02:42.3]} 9. cxd4 {[%clk 0:02:49.2]} 9... O-O
{[%clk 0:02:42.1]} 10. O-O {[%clk 0:02:49]} 10... Bg4 {[%clk 0:02:41.8]} 11. h3
{[%clk 0:02:48.6]} 11... Bh5 {[%clk 0:02:41.3]} 12. a4 {[%clk 0:02:43.7]} 12...
Nb4 {[%clk 0:02:40.3]} 13. Be2 {[%clk 0:02:35]} 13... a5 {[%clk 0:02:39]} 14.
Ba3 {[%clk 0:02:29.6]} 14... Re8 {[%clk 0:02:37.9]} 15. Bxb4 {[%clk 0:02:27.7]}
15... Bxb4 {[%clk 0:02:37.2]} 16. Ne5 {[%clk 0:02:26.6]} 16... Bxe2 {[%clk
0:02:27.3]} 17. Qxe2 {[%clk 0:02:27.5]} 17... Qd5 {[%clk 0:02:22.2]} 18. Rfc1
{[%clk 0:02:10.8]} 18... c6 {[%clk 0:02:20.2]} 19. Qc4 {[%clk 0:02:09]} 19...
Rad8 {[%clk 0:02:18.9]} 20. Qxd5 {[%clk 0:02:08.4]} 20... Rxd5 {[%clk
0:02:18.6]} 21. Rc4 {[%clk 0:02:04.8]} 21... Bd6 {[%clk 0:02:14.7]} 22. Nf3
{[%clk 0:02:03.9]} 22... Re7 {[%clk 0:02:12.9]} 23. Rb1 {[%clk 0:02:03.6]} 23...
f5 {[%clk 0:02:12.7]} 24. Nd2 {[%clk 0:01:45.7]} 24... Kf8 {[%clk 0:02:08.3]}
25. Rb3 {[%clk 0:01:41.3]} 25... Ke8 {[%clk 0:02:04.5]} 26. g3 {[%clk
0:01:20.1]} 26... Kd8 {[%clk 0:02:00.8]} 27. Kg2 {[%clk 0:01:15.1]} 27... Kc7
{[%clk 0:01:59]} 28. f3 {[%clk 0:01:09.6]} 28... Bb4 {[%clk 0:01:57.5]} 29. Nb1
{[%clk 0:00:54.4]} 29... g6 {[%clk 0:01:54.3]} 30. Nc3 {[%clk 0:00:53.3]} 30...
Bxc3 {[%clk 0:01:49]} 31. Rcxc3 {[%clk 0:00:50]} 31... Kd6 {[%clk 0:01:43.1]}
32. Kf2 {[%clk 0:00:46.7]} 32... b5 {[%clk 0:01:40.6]} 33. axb5 {[%clk
0:00:38.4]} 33... cxb5 {[%clk 0:01:40.2]} 34. Rb1 {[%clk 0:00:37.1]} 34... Rc7
{[%clk 0:01:36.5]} 35. Rxc7 {[%clk 0:00:36.6]} 35... Kxc7 {[%clk 0:01:36.3]} 36.
Ke2 {[%clk 0:00:37.3]} 36... Kb6 {[%clk 0:01:33.9]} 37. Kd3 {[%clk 0:00:37.8]}
37... Rd8 {[%clk 0:01:34.3]} 38. Rc1 {[%clk 0:00:36]} 38... b4 {[%clk
0:01:33.8]} 39. Rc5 {[%clk 0:00:34.5]} 39... Rf8 {[%clk 0:01:28.7]} 40. Kc4
{[%clk 0:00:26.8]} 40... Re8 {[%clk 0:01:28]} 41. Rb5+ {[%clk 0:00:24.4]} 41...
Ka6 {[%clk 0:01:27.4]} 42. Re5 {[%clk 0:00:25]} 42... Rc8+ {[%clk 0:01:25.5]}
43. Rc5 {[%clk 0:00:25.1]} 43... Re8 {[%clk 0:01:25.5]} 44. Re5 {[%clk 0:00:25]}
44... Rb8 {[%clk 0:01:15.3]} 45. Re6+ {[%clk 0:00:24.1]} 45... Ka7 {[%clk
0:01:15.4]} 46. Kb3 {[%clk 0:00:23.1]} 46... Rc8 {[%clk 0:01:14.2]} 47. Re7+
{[%clk 0:00:21.2]} 47... Kb6 {[%clk 0:01:13.9]} 48. Re6+ {[%clk 0:00:21.2]}
48... Kb7 {[%clk 0:01:12.9]} 49. Re7+ {[%clk 0:00:21.4]} 49... Ka6 {[%clk
0:01:11.9]} 50. Re6+ {[%clk 0:00:20.6]} 50... Kb5 {[%clk 0:01:11.5]} 51. Re5+
{[%clk 0:00:20.8]} 51... Kb6 {[%clk 0:01:11.9]} 52. Re6+ {[%clk 0:00:21.1]}
52... Kb7 {[%clk 0:01:11.5]} 53. Re7+ {[%clk 0:00:21.2]} 53... Kc6 {[%clk
0:01:10.6]} 54. Rxh7 {[%clk 0:00:20.8]} 54... Kb6 {[%clk 0:01:07.9]} 55. Rg7
{[%clk 0:00:17.1]} 55... Rc3+ {[%clk 0:01:07.6]} 56. Kb2 {[%clk 0:00:17.5]}
56... a4 {[%clk 0:01:06.2]} 57. Rxg6+ {[%clk 0:00:17.7]} 57... Kb5 {[%clk
0:01:06.6]} 58. Re6 {[%clk 0:00:18]} 58... a3+ {[%clk 0:01:06.6]} 59. Kb1 {[%clk
0:00:17.9]} 59... b3 {[%clk 0:01:06.3]} 60. Re8 {[%clk 0:00:15.4]} 60... a2+
{[%clk 0:01:06.3]} 61. Kb2 {[%clk 0:00:15.8]} 61... Rc2+ {[%clk 0:01:06.3]} 62.
Kxb3 {[%clk 0:00:15.3]} 62... a1=Q {[%clk 0:01:06]} 63. Re5+ {[%clk 0:00:14.2]}
63... Kc6 {[%clk 0:01:05.5]} 64. Kxc2 {[%clk 0:00:14.9]} 64... Qf1 {[%clk
0:01:01.3]} 65. f4 {[%clk 0:00:13.4]} 65... Qxh3 {[%clk 0:00:55.5]} 66. Kd3
{[%clk 0:00:13.9]} 66... Qxg3 {[%clk 0:00:53.6]} 67. Kd2 {[%clk 0:00:14.4]}
67... Qh3 {[%clk 0:00:53.1]} 68. Kd3 {[%clk 0:00:14.9]} 68... Kd6 {[%clk
0:00:53.2]} 69. Kd2 {[%clk 0:00:15.2]} 69... Qg2+ {[%clk 0:00:52.3]} 70. Kd3
{[%clk 0:00:15.7]} 70... Qb2 {[%clk 0:00:52.2]} 71. Kc4 {[%clk 0:00:15.5]} 71...
Qc2+ {[%clk 0:00:51.7]} 72. Kb4 {[%clk 0:00:16.1]} 72... Qd3 {[%clk 0:00:51.3]}
73. Ka5 {[%clk 0:00:15.7]} 73... Qb3 {[%clk 0:00:50.1]} 74. Ka6 {[%clk
0:00:12.2]} 74... Qb4 {[%clk 0:00:42.6]} 75. Rb5 {[%clk 0:00:05.6]} 75... Qa3+
{[%clk 0:00:41.9]} 76. Ra5 {[%clk 0:00:05.5]} 76... Qd3+ {[%clk 0:00:41.2]} 77.
Kb7 {[%clk 0:00:04.4]} 77... Qxe3 {[%clk 0:00:40.7]} 78. Rxf5 {[%clk 0:00:04.9]}
78... Qe4+ {[%clk 0:00:40.6]} 79. d5 {[%clk 0:00:05.3]} 79... Qxf5 {[%clk
0:00:40.7]} 0-1

[Event "Early-Titled-Tuesday-Blitz-April-02-2024"]
[Site "Chess.com"]
[Date "2024.04.02"]
[Round "1"]
[White "Laico"]
[Black "LikeWater"]
[Result "1-0"]
[WhiteElo "2394"]
[BlackElo "2660"]
[TimeControl "180+1"]
[EndTime "8:08:32 PDT"]
[Termination "Laico won by resignation"]

1. e4 {[%clk 0:02:58]} 1... Nf6 {[%clk 0:02:58.2]} 2. e5 {[%clk 0:02:57.9]} 2...
Nd5 {[%clk 0:02:58.3]} 3. c4 {[%clk 0:02:58.8]} 3... Nb6 {[%clk 0:02:58.6]} 4.
d4 {[%clk 0:02:59.7]} 4... d6 {[%clk 0:02:58.5]} 5. exd6 {[%clk 0:03:00.6]} 5...
exd6 {[%clk 0:02:56.9]} 6. Bd3 {[%clk 0:02:59.8]} 6... Be7 {[%clk 0:02:55.1]} 7.
Nc3 {[%clk 0:02:59.4]} 7... Nc6 {[%clk 0:02:49.5]} 8. Nge2 {[%clk 0:02:59]} 8...
O-O {[%clk 0:02:43.1]} 9. O-O {[%clk 0:02:58.2]} 9... Nb4 {[%clk 0:02:40]} 10.
Bb1 {[%clk 0:02:54.8]} 10... Re8 {[%clk 0:02:16.9]} 11. d5 {[%clk 0:02:41.7]}
11... Bf6 {[%clk 0:02:06.1]} 12. a3 {[%clk 0:02:36]} 12... Na6 {[%clk
0:02:03.7]} 13. b4 {[%clk 0:02:20.3]} 13... Bg4 {[%clk 0:01:23.4]} 14. f3 {[%clk
0:02:09.7]} 14... Bh5 {[%clk 0:01:23.6]} 15. Nd4 {[%clk 0:01:53.1]} 15... Bg6
{[%clk 0:01:08]} 16. Bxg6 {[%clk 0:01:52.7]} 16... hxg6 {[%clk 0:01:08.9]} 17.
Qd3 {[%clk 0:01:10]} 17... Be5 {[%clk 0:01:00.3]} 18. Ne4 {[%clk 0:00:59.8]}
18... Qd7 {[%clk 0:00:45.8]} 19. f4 {[%clk 0:00:51.7]} 19... Bxd4+ {[%clk
0:00:45.3]} 20. Qxd4 {[%clk 0:00:52.6]} 20... Qf5 {[%clk 0:00:36.7]} 21. Bb2
{[%clk 0:00:52.3]} 21... f6 {[%clk 0:00:32]} 22. Rae1 {[%clk 0:00:52.1]} 22...
Qd7 {[%clk 0:00:09.3]} 23. Re3 {[%clk 0:00:39.3]} 23... Qf7 {[%clk 0:00:07.4]}
24. Rfe1 {[%clk 0:00:37]} 24... Na4 {[%clk 0:00:06.4]} 25. Ba1 {[%clk
0:00:29.8]} 25... Kf8 {[%clk 0:00:06.7]} 26. Qd1 {[%clk 0:00:13.7]} 26... Nb6
{[%clk 0:00:06.3]} 27. Qe2 {[%clk 0:00:14]} 27... Rad8 {[%clk 0:00:05.5]} 28.
Bd4 {[%clk 0:00:09.1]} 28... Nd7 {[%clk 0:00:05.7]} 29. h4 {[%clk 0:00:08.5]}
29... Nab8 {[%clk 0:00:04.4]} 30. g4 {[%clk 0:00:08.4]} 30... a6 {[%clk
0:00:04]} 31. f5 {[%clk 0:00:08.8]} 31... b5 {[%clk 0:00:04.2]} 32. fxg6 {[%clk
0:00:04.5]} 32... Qxg6 {[%clk 0:00:05.1]} 33. h5 {[%clk 0:00:04.7]} 33... Qf7
{[%clk 0:00:05.4]} 34. g5 {[%clk 0:00:05.3]} 34... f5 {[%clk 0:00:05]} 35. Rf1
{[%clk 0:00:04.5]} 35... Kg8 {[%clk 0:00:04.4]} 36. Ng3 {[%clk 0:00:04.5]} 36...
Rxe3 {[%clk 0:00:04.2]} 37. Qxe3 {[%clk 0:00:05.4]} 37... Re8 {[%clk 0:00:04.1]}
38. Qd3 {[%clk 0:00:04.6]} 38... bxc4 {[%clk 0:00:04.4]} 39. Qxc4 {[%clk
0:00:05.5]} 39... Nb6 {[%clk 0:00:04.5]} 40. Bxb6 {[%clk 0:00:04.2]} 40... cxb6
{[%clk 0:00:05.4]} 41. Rxf5 {[%clk 0:00:04.5]} 41... Qe7 {[%clk 0:00:06.1]} 42.
Qf1 {[%clk 0:00:04.1]} 42... Nd7 {[%clk 0:00:05.2]} 43. Qf4 {[%clk 0:00:03.1]}
43... Qe1+ {[%clk 0:00:05.2]} 44. Kg2 {[%clk 0:00:03.6]} 44... Ne5 {[%clk
0:00:05.4]} 45. h6 {[%clk 0:00:02.6]} 45... Ng6 {[%clk 0:00:04.4]} 46. h7+
{[%clk 0:00:02.3]} 46... Kxh7 {[%clk 0:00:04.5]} 47. Qg4 {[%clk 0:00:02.4]}
47... Qe7 {[%clk 0:00:03.7]} 48. Qh5+ {[%clk 0:00:02.7]} 48... Kg8 {[%clk
0:00:04.1]} 49. Qxg6 {[%clk 0:00:03.6]} 49... Rf8 {[%clk 0:00:04]} 50. Rxf8+
{[%clk 0:00:02.9]} 50... Kxf8 {[%clk 0:00:04.9]} 51. Qf5+ {[%clk 0:00:02.9]}
51... Kg8 {[%clk 0:00:05.4]} 52. Qe6+ {[%clk 0:00:03.5]} 52... Kf8 {[%clk
0:00:05.8]} 53. Qxe7+ {[%clk 0:00:03.5]} 53... Kxe7 {[%clk 0:00:06.7]} 54. Nf5+
{[%clk 0:00:04]} 54... Kd7 {[%clk 0:00:06.8]} 55. Nxg7 {[%clk 0:00:03.1]} 55...
Ke7 {[%clk 0:00:07.7]} 56. Ne6 {[%clk 0:00:03.3]} 56... a5 {[%clk 0:00:07.7]}
57. bxa5 {[%clk 0:00:03.3]} 57... bxa5 {[%clk 0:00:08.6]} 58. Kf3 {[%clk
0:00:03.9]} 58... Kf7 {[%clk 0:00:09]} 59. Ke4 {[%clk 0:00:04.8]} 59... Kg6
{[%clk 0:00:09.7]} 60. Kf4 {[%clk 0:00:05.4]} 1-0

[Event "Early-Titled-Tuesday-Blitz-April-02-2024"]
[Site "Chess.com"]
[Date "2024.04.02"]
[Round "1"]
[White "NewBornNow"]
[Black "SultaiC"]
[Result "0-1"]
[WhiteElo "2817"]
[BlackElo "2508"]
[TimeControl "180+1"]
[EndTime "8:08:33 PDT"]
[Termination "SultaiC won on time"]

1. e4 {[%clk 0:02:52.6]} 1... c5 {[%clk 0:02:58.7]} 2. Nf3 {[%clk 0:02:52.2]}
2... d6 {[%clk 0:02:58.9]} 3. d4 {[%clk 0:02:50.4]} 3... cxd4 {[%clk 0:02:59.8]}
4. Nxd4 {[%clk 0:02:50.3]} 4... Nf6 {[%clk 0:03:00.2]} 5. Nc3 {[%clk 0:02:45.3]}
5... a6 {[%clk 0:03:00.6]} 6. Be3 {[%clk 0:02:42.8]} 6... e5 {[%clk 0:03:00.1]}
7. Nf3 {[%clk 0:02:41.4]} 7... Be7 {[%clk 0:02:58.5]} 8. Bc4 {[%clk 0:02:41.2]}
8... O-O {[%clk 0:02:58.4]} 9. O-O {[%clk 0:02:40.1]} 9... Be6 {[%clk
0:02:58.1]} 10. Bxe6 {[%clk 0:02:23.2]} 10... fxe6 {[%clk 0:02:59]} 11. Ng5
{[%clk 0:02:22.4]} 11... Qd7 {[%clk 0:02:56.9]} 12. f4 {[%clk 0:02:17.6]} 12...
h6 {[%clk 0:02:50.6]} 13. Nh3 {[%clk 0:02:15.5]} 13... Nc6 {[%clk 0:02:47.7]}
14. f5 {[%clk 0:02:15.1]} 14... Rad8 {[%clk 0:02:35.4]} 15. Bb6 {[%clk
0:02:12.5]} 15... Rc8 {[%clk 0:02:33.1]} 16. Qe2 {[%clk 0:02:10.2]} 16... Nd4
{[%clk 0:01:53.6]} 17. Qd3 {[%clk 0:01:59.1]} 17... Qc6 {[%clk 0:01:29.6]} 18.
Bxd4 {[%clk 0:01:51.2]} 18... exd4 {[%clk 0:01:29.6]} 19. Ne2 {[%clk 0:01:49.8]}
19... e5 {[%clk 0:01:25.6]} 20. c3 {[%clk 0:01:45.3]} 20... Qxe4 {[%clk
0:01:00.8]} 21. Qxe4 {[%clk 0:01:40.7]} 21... Nxe4 {[%clk 0:01:01.7]} 22. cxd4
{[%clk 0:01:40.5]} 22... Rc2 {[%clk 0:00:58.2]} 23. Nc3 {[%clk 0:01:28.1]} 23...
Nxc3 {[%clk 0:00:51.1]} 24. bxc3 {[%clk 0:01:27.7]} 24... e4 {[%clk 0:00:50]}
25. g4 {[%clk 0:01:19.3]} 25... Rxc3 {[%clk 0:00:44]} 26. Nf4 {[%clk 0:01:19.2]}
26... Bf6 {[%clk 0:00:36.1]} 27. Rad1 {[%clk 0:01:17.5]} 27... Rc2 {[%clk
0:00:27.5]} 28. Rfe1 {[%clk 0:01:13.4]} 28... Re8 {[%clk 0:00:22.2]} 29. d5
{[%clk 0:01:04.5]} 29... Re5 {[%clk 0:00:18.7]} 30. Rc1 {[%clk 0:00:56.9]} 30...
Rxc1 {[%clk 0:00:14.9]} 31. Rxc1 {[%clk 0:00:55.9]} 31... Bg5 {[%clk 0:00:11.4]}
32. Rc8+ {[%clk 0:00:52.2]} 32... Kf7 {[%clk 0:00:11.4]} 33. Ng6 {[%clk
0:00:51]} 33... Re8 {[%clk 0:00:11.5]} 34. Rc7+ {[%clk 0:00:49.3]} 34... Kf6
{[%clk 0:00:11.5]} 35. Kf1 {[%clk 0:00:46.9]} 35... Be3 {[%clk 0:00:09.8]} 36.
Rxb7 {[%clk 0:00:42]} 36... Bc5 {[%clk 0:00:06.5]} 37. Ke2 {[%clk 0:00:38.9]}
37... e3 {[%clk 0:00:06.7]} 38. Nf4 {[%clk 0:00:33.8]} 38... Re4 {[%clk
0:00:06.7]} 39. Nh5+ {[%clk 0:00:32.6]} 39... Kg5 {[%clk 0:00:05.3]} 40. Rxg7+
{[%clk 0:00:32.2]} 40... Kh4 {[%clk 0:00:06]} 41. f6 {[%clk 0:00:30.7]} 41...
Ra4 {[%clk 0:00:06]} 42. f7 {[%clk 0:00:24.3]} 42... Rxa2+ {[%clk 0:00:06.9]}
43. Kd3 {[%clk 0:00:22.2]} 43... Rf2 {[%clk 0:00:07.8]} 44. Ng3 {[%clk
0:00:19.8]} 44... Rf6 {[%clk 0:00:07.3]} 45. Nf5+ {[%clk 0:00:18.6]} 45... Kh3
{[%clk 0:00:07.9]} 46. Nxe3 {[%clk 0:00:18.2]} 46... Bxe3 {[%clk 0:00:08.3]} 47.
Kxe3 {[%clk 0:00:17.7]} 47... a5 {[%clk 0:00:09.2]} 48. Rg6 {[%clk 0:00:15.7]}
48... Rxf7 {[%clk 0:00:09.2]} 49. Rxh6+ {[%clk 0:00:15.2]} 49... Kxg4 {[%clk
0:00:10.1]} 50. Rxd6 {[%clk 0:00:15.1]} 50... Kf5 {[%clk 0:00:08.8]} 51. Kd4
{[%clk 0:00:09.5]} 51... Ra7 {[%clk 0:00:08.7]} 52. Rc6 {[%clk 0:00:06.2]} 52...
a4 {[%clk 0:00:09.3]} 53. Rc2 {[%clk 0:00:06.1]} 53... a3 {[%clk 0:00:09.8]} 54.
Ra2 {[%clk 0:00:06.1]} 54... Kf6 {[%clk 0:00:10.4]} 55. Kc5 {[%clk 0:00:04.7]}
55... Ke7 {[%clk 0:00:09.8]} 56. Kb6 {[%clk 0:00:04.6]} 56... Ra4 {[%clk
0:00:10]} 57. Kc6 {[%clk 0:00:02.8]} 57... Rc4+ {[%clk 0:00:09.8]} 58. Kb5
{[%clk 0:00:02.6]} 58... Rd4 {[%clk 0:00:09.5]} 59. Kc5 {[%clk 0:00:02.3]} 59...
Ra4 {[%clk 0:00:10.2]} 60. h4 {[%clk 0:00:02.2]} 60... Kf6 {[%clk 0:00:08.2]}
61. h5 {[%clk 0:00:01.5]} 61... Ra5+ {[%clk 0:00:08]} 0-1

[Event "Early-Titled-Tuesday-Blitz-April-02-2024"]
[Site "Chess.com"]
[Date "2024.04.02"]
[Round "1"]
[White "Yeritsyaan"]
[Black "Knightmare1014"]
[Result "1-0"]
[WhiteElo "2653"]
[BlackElo "2346"]
[TimeControl "180+1"]
[EndTime "8:08:35 PDT"]
[Termination "Yeritsyaan won by checkmate"]

1. Nf3 {[%clk 0:03:00.9]} 1... d5 {[%clk 0:02:58.1]} 2. g3 {[%clk 0:02:58.4]}
2... Nf6 {[%clk 0:02:55.7]} 3. Bg2 {[%clk 0:02:58.9]} 3... c6 {[%clk 0:02:55.1]}
4. O-O {[%clk 0:02:59.5]} 4... Bf5 {[%clk 0:02:53.7]} 5. b3 {[%clk 0:02:59]}
5... e6 {[%clk 0:02:53.7]} 6. Bb2 {[%clk 0:02:59.3]} 6... Be7 {[%clk 0:02:54.2]}
7. d3 {[%clk 0:02:59.5]} 7... O-O {[%clk 0:02:52.8]} 8. Nbd2 {[%clk 0:02:59.7]}
8... h6 {[%clk 0:02:52.8]} 9. Qe1 {[%clk 0:02:56.6]} 9... Nbd7 {[%clk
0:02:50.1]} 10. e4 {[%clk 0:02:56.8]} 10... Bh7 {[%clk 0:02:49.7]} 11. Qe2
{[%clk 0:02:57.1]} 11... a5 {[%clk 0:02:42.1]} 12. a4 {[%clk 0:02:56]} 12... Qc7
{[%clk 0:02:25.7]} 13. Rfe1 {[%clk 0:02:55]} 13... Rfe8 {[%clk 0:02:24.9]} 14.
e5 {[%clk 0:02:46.3]} 14... Nh5 {[%clk 0:02:19.5]} 15. Nd4 {[%clk 0:02:17.2]}
15... g6 {[%clk 0:02:02.6]} 16. f4 {[%clk 0:02:14.5]} 16... Ng7 {[%clk 0:02:02]}
17. Kh1 {[%clk 0:02:13.6]} 17... Bf8 {[%clk 0:01:56.1]} 18. Ba3 {[%clk
0:01:53.6]} 18... Bxa3 {[%clk 0:01:52.8]} 19. Rxa3 {[%clk 0:01:54.5]} 19... Qd8
{[%clk 0:01:43.6]} 20. N2f3 {[%clk 0:01:52.7]} 20... g5 {[%clk 0:01:42.7]} 21.
Qd2 {[%clk 0:01:50.2]} 21... g4 {[%clk 0:01:37.4]} 22. Nh4 {[%clk 0:01:40.5]}
22... Nf8 {[%clk 0:01:33]} 23. Raa1 {[%clk 0:01:39.1]} 23... Ng6 {[%clk
0:01:32.4]} 24. Nxg6 {[%clk 0:01:39.3]} 24... Bxg6 {[%clk 0:01:32.6]} 25. c3
{[%clk 0:01:25.6]} 25... Nf5 {[%clk 0:01:31.9]} 26. Nxf5 {[%clk 0:01:20]} 26...
Bxf5 {[%clk 0:01:32]} 27. Qe3 {[%clk 0:01:18.2]} 27... Kg7 {[%clk 0:01:29.8]}
28. d4 {[%clk 0:01:07]} 28... h5 {[%clk 0:01:29.7]} 29. c4 {[%clk 0:01:07.1]}
29... Rh8 {[%clk 0:01:24.8]} 30. Kg1 {[%clk 0:01:01.7]} 30... h4 {[%clk
0:01:24.3]} 31. cxd5 {[%clk 0:00:53.8]} 31... cxd5 {[%clk 0:01:24.1]} 32. Rac1
{[%clk 0:00:53.7]} 32... h3 {[%clk 0:01:20.3]} 33. Bf1 {[%clk 0:00:53.3]} 33...
Be4 {[%clk 0:01:18.4]} 34. Be2 {[%clk 0:00:51.7]} 34... Bf5 {[%clk 0:01:16]} 35.
Rc5 {[%clk 0:00:50.6]} 35... b6 {[%clk 0:01:13.6]} 36. Rc6 {[%clk 0:00:50.6]}
36... Rc8 {[%clk 0:01:09.5]} 37. Rec1 {[%clk 0:00:48.9]} 37... Rxc6 {[%clk
0:01:04]} 38. Rxc6 {[%clk 0:00:49.8]} 38... Qe7 {[%clk 0:01:02.6]} 39. Qc3
{[%clk 0:00:48.9]} 39... Qa3 {[%clk 0:00:58.6]} 40. Kf2 {[%clk 0:00:48.6]} 40...
Qa2 {[%clk 0:00:58.1]} 41. Rc7 {[%clk 0:00:44.6]} 41... Be4 {[%clk 0:00:55.4]}
42. f5 {[%clk 0:00:39]} 42... Bxf5 {[%clk 0:00:43.6]} 43. Qe3 {[%clk 0:00:39.1]}
43... Kg6 {[%clk 0:00:42.4]} 44. Kg1 {[%clk 0:00:27.1]} 44... Qb1+ {[%clk
0:00:41.7]} 45. Rc1 {[%clk 0:00:26.2]} 45... Qe4 {[%clk 0:00:40.3]} 46. Qxe4
{[%clk 0:00:23.4]} 46... Bxe4 {[%clk 0:00:40.5]} 47. Kf2 {[%clk 0:00:20.5]}
47... f6 {[%clk 0:00:38.2]} 48. exf6 {[%clk 0:00:20.1]} 48... Kxf6 {[%clk
0:00:38.2]} 49. Ke3 {[%clk 0:00:20.6]} 49... Ke7 {[%clk 0:00:33.2]} 50. Rc6
{[%clk 0:00:20.2]} 50... Rf8 {[%clk 0:00:31.8]} 51. Bxg4 {[%clk 0:00:19.3]}
51... Bg2 {[%clk 0:00:31]} 52. Rxe6+ {[%clk 0:00:19]} 52... Kd8 {[%clk
0:00:28.1]} 53. Rxb6 {[%clk 0:00:19.1]} 53... Rf1 {[%clk 0:00:26.8]} 54. Rh6
{[%clk 0:00:18]} 54... Rh1 {[%clk 0:00:23.5]} 55. Bxh3 {[%clk 0:00:17.5]} 55...
Rxh2 {[%clk 0:00:23.4]} 56. Rh8+ {[%clk 0:00:18.2]} 56... Ke7 {[%clk 0:00:20.5]}
57. Rh7+ {[%clk 0:00:19]} 57... Kf6 {[%clk 0:00:20.9]} 58. Bf5 {[%clk
0:00:19.7]} 58... Rxh7 {[%clk 0:00:20.2]} 59. Bxh7 {[%clk 0:00:20.6]} 59... Be4
{[%clk 0:00:19.9]} 60. Bxe4 {[%clk 0:00:20.6]} 60... dxe4 {[%clk 0:00:20.4]} 61.
Kxe4 {[%clk 0:00:21.5]} 61... Kg5 {[%clk 0:00:20.6]} 62. d5 {[%clk 0:00:21.6]}
62... Kg4 {[%clk 0:00:21]} 63. d6 {[%clk 0:00:22]} 63... Kxg3 {[%clk 0:00:21.9]}
64. d7 {[%clk 0:00:22.7]} 64... Kf2 {[%clk 0:00:22.8]} 65. d8=Q {[%clk
0:00:22.7]} 65... Ke2 {[%clk 0:00:23.2]} 66. Qxa5 {[%clk 0:00:23.4]} 66... Kd1
{[%clk 0:00:23.2]} 67. Qc5 {[%clk 0:00:24.1]} 67... Kd2 {[%clk 0:00:23.3]} 68.
a5 {[%clk 0:00:25]} 68... Ke2 {[%clk 0:00:23.6]} 69. b4 {[%clk 0:00:25.9]} 69...
Kf1 {[%clk 0:00:24.5]} 70. a6 {[%clk 0:00:26.8]} 70... Kg2 {[%clk 0:00:25.1]}
71. b5 {[%clk 0:00:27.7]} 71... Kh2 {[%clk 0:00:25.1]} 72. a7 {[%clk 0:00:28.6]}
72... Kg2 {[%clk 0:00:25.2]} 73. a8=Q {[%clk 0:00:29]} 73... Kg3 {[%clk
0:00:25.4]} 74. b6 {[%clk 0:00:29.5]} 74... Kh3 {[%clk 0:00:25.8]} 75. b7 {[%clk
0:00:29.9]} 75... Kh2 {[%clk 0:00:26.7]} 76. b8=Q+ {[%clk 0:00:30.4]} 76... Kg2
{[%clk 0:00:27.6]} 77. Qg8+ {[%clk 0:00:30.9]} 77... Kh2 {[%clk 0:00:27.6]} 78.
Qh5# {[%clk 0:00:31.2]} 1-0